bitfinex/quotes_BTCUSD_20250204
["timestamp","ask_amount","ask_price","bid_price","bid_amount"]
[1738654060987,0.00714818,99099.0,99094.0,0.10238506]
[1738654061211,0.151361,99101.0,99094.0,0.10238506]
[1738654061212,0.151365,99098.0,99094.0,0.10238506]
[1738654061403,0.1585109,99098.0,99094.0,0.10238506]
[1738654061605,0.0071459,99098.0,99094.0,0.10238506]
[1738654062007,0.151364,99099.0,99094.0,0.10238506]
[1738654062235,0.201813,99102.0,99094.0,0.10338506]
[1738654062236,0.00714562,99097.0,99094.0,0.10338506]
[1738654062447,0.0071479,99098.0,99094.0,0.10238506]
[1738654062652,0.00714335,99096.0,99094.0,0.10338506]
[1738654062907,0.151361,99101.0,99094.0,0.10338506]
[1738654063209,0.00715245,99100.0,99094.0,0.10238506]
[1738654063554,0.00715245,99100.0,99088.0,0.00981553]
[1738654063777,0.00715245,99100.0,99089.0,0.10238506]
[1738654063983,0.151363,99099.0,99089.0,0.10238506]
[1738654064530,0.15851151,99098.0,99094.0,0.001]
[1738654064775,0.15851151,99098.0,99089.0,0.10238506]
[1738654064776,0.151368,99096.0,99089.0,0.10238506]
[1738654064976,0.151368,99096.0,99089.0,0.10338506]
[1738654065150,0.00713962,99095.0,99089.0,0.10238506]
[1738654065375,0.15851062,99095.0,99089.0,0.10238506]
[1738654065557,0.00713962,99095.0,99089.0,0.10338506]
[1738654065695,0.00713962,99095.0,99089.0,0.10238506]
[1738654065900,0.15137,99095.0,99089.0,0.10238506]
[1738654066115,0.00713735,99094.0,99089.0,0.10338506]
[1738654066323,0.151364,99099.0,99089.0,0.10338506]
[1738654066520,0.00714645,99098.0,99089.0,0.10338506]
[1738654067034,0.15851245,99098.0,99089.0,0.10338506]
[1738654067578,0.15851245,99098.0,99089.0,0.10238506]
[1738654067728,0.15851245,99098.0,99089.0,0.10338506]
[1738654067923,0.15851245,99098.0,99089.0,0.10238506]
[1738654068124,0.151366,99097.0,99089.0,0.10238506]
[1738654068406,0.0071419,99096.0,99089.0,0.10338506]
[1738654068630,0.151366,99098.0,99089.0,0.10338506]
[1738654068802,0.00713962,99095.0,99089.0,0.10338506]
[1738654068966,0.151366,99098.0,99089.0,0.10238506]
[1738654069167,0.00713735,99094.0,99089.0,0.10238506]
[1738654069416,0.151366,99098.0,99089.0,0.10338506]
[1738654069642,0.00713507,99093.0,99089.0,0.10338506]
[1738654069859,0.201816,99100.0,99089.0,0.10338506]
[1738654070080,0.0071328,99092.0,99089.0,0.10338506]
[1738654070309,0.01,99103.0,99089.0,0.10338506]
[1738654070432,0.201812,99102.0,99089.0,0.10338506]
[1738654070634,0.151364,99099.0,99089.0,0.10238506]
[1738654070846,0.151364,99099.0,99089.0,0.10338506]
[1738654071046,0.00714492,99098.0,99089.0,0.10238506]
[1738654071483,0.00714492,99098.0,99089.0,0.10338506]
[1738654071661,0.00714492,99098.0,99089.0,0.10238506]
[1738654071842,0.151361,99101.0,99091.0,0.151375]
[1738654072039,0.01,99103.0,99092.0,0.10238506]
[1738654072040,0.00714267,99097.0,99092.0,0.10238506]
[1738654072382,0.00714036,99096.0,99085.0,0.151384]
[1738654072585,0.201828,99094.0,99089.0,0.001]
[1738654072794,0.151377,99090.0,99089.0,0.001]
[1738654073260,0.15850371,99090.0,99089.0,0.001]
[1738654073661,0.00712671,99090.0,99089.0,0.001]
[1738654073888,0.151372,99094.0,99081.0,0.221854]
[1738654074093,0.01,99102.0,99092.0,0.001]
[1738654074306,0.151363,99100.0,99092.0,0.10238506]
[1738654074511,0.00713533,99095.0,99092.0,0.10238506]
[1738654074964,0.0091775,99097.0,99092.0,0.10238506]
[1738654075170,0.151371,99095.0,99092.0,0.10238506]
[1738654075373,0.151372,99093.0,99089.0,0.001]
[1738654075546,0.01,99093.0,99081.0,0.02]
[1738654075723,0.151374,99092.0,99082.0,0.10238506]
[1738654075931,0.00712623,99091.0,99082.0,0.10238506]
[1738654076171,0.151377,99090.0,99082.0,0.10238506]
[1738654076390,0.01,99094.0,99082.0,0.10238506]
[1738654076617,0.00712168,99089.0,99082.0,0.10238506]
[1738654076834,0.01,99094.0,99082.0,0.10238506]
[1738654077036,0.0071194,99088.0,99082.0,0.10238506]
[1738654077318,0.01,99094.0,99082.0,0.10238506]
[1738654077566,0.151385,99085.0,99081.0,0.02]
[1738654077801,0.0476,99090.0,99081.0,0.12238506]
[1738654078002,0.0476,99090.0,99082.0,0.001]
[1738654078003,0.0071103,99084.0,99082.0,0.001]
[1738654078124,0.151383,99086.0,99081.0,0.12238506]
[1738654078323,0.00711258,99085.0,99081.0,0.12238506]
[1738654078526,0.00711258,99085.0,99082.0,0.001]
[1738654078725,0.00711258,99085.0,99081.0,0.12238506]
[1738654078970,0.00711258,99085.0,99081.0,0.10238506]
[1738654079130,0.00711258,99085.0,99081.0,0.10338506]
[1738654079329,0.151381,99088.0,99081.0,0.10338506]
[1738654079535,0.00711713,99087.0,99081.0,0.10338506]
[1738654079969,0.151375,99092.0,99081.0,0.25477506]
[1738654080120,0.00711485,99086.0,99081.0,0.25477506]
[1738654080323,0.151375,99092.0,99081.0,0.25477506]
[1738654080324,0.151375,99092.0,99081.0,0.10238506]
[1738654080575,0.00712623,99091.0,99082.0,0.0798]
[1738654080938,0.00712623,99091.0,99082.0,0.231188]
[1738654081139,0.00712623,99091.0,99083.0,0.25377206]
[1738654081398,0.09868788,99097.0,99084.0,0.00134215]
[1738654081580,0.09868788,99097.0,99091.0,0.151375]
[1738654081784,0.0002245,99096.0,99091.0,0.25376006]
[1738654081989,0.0002245,99096.0,99091.0,0.10238506]
[1738654082433,0.1515925,99096.0,99091.0,0.10238506]
[1738654082586,0.0002245,99096.0,99091.0,0.10238506]
[1738654082789,0.151369,99095.0,99091.0,0.10238506]
[1738654083194,0.0002245,99096.0,99081.0,0.001]
[1738654083399,0.20183,99093.0,99082.0,0.10238506]
[1738654083839,0.15138,99088.0,99077.0,0.151396]
[1738654084043,0.15138,99088.0,99078.0,0.10238506]
[1738654084266,0.15138,99088.0,99086.0,0.02]
[1738654084467,0.161379,99090.0,99086.0,0.02]
[1738654084642,0.151379,99089.0,99086.0,0.02]
[1738654084846,0.151375,99092.0,99086.0,0.02]
[1738654085348,0.0002245,99096.0,99087.0,0.10238506]
[1738654085582,0.1515935,99096.0,99087.0,0.10238506]
[1738654086461,0.15137,99095.0,99087.0,0.10238506]
[1738654086785,0.0002245,99096.0,99087.0,0.10238506]
[1738654087005,0.0002245,99096.0,99088.0,0.151379]
[1738654087352,0.0002245,99096.0,99092.0,0.151374]
[1738654087575,0.009402,99096.0,99094.0,0.151371]
[1738654087989,0.009402,99096.0,99092.0,0.10238506]
[1738654088189,0.009402,99096.0,99092.0,0.25375906]
[1738654088361,0.00713335,99095.0,99092.0,0.25375906]
[1738654088561,0.00713335,99095.0,99092.0,0.25475906]
[1738654088766,0.00713335,99095.0,99092.0,0.10338506]
[1738654089794,0.00713335,99095.0,99092.0,0.10238506]
[1738654090019,0.00713335,99095.0,99092.0,0.10338506]
[1738654090375,0.00713335,99095.0,99092.0,0.10238506]
[1738654090620,0.00713335,99095.0,99092.0,0.10338506]
[1738654091252,0.151372,99093.0,99092.0,0.001]
[1738654091437,0.01,99090.0,99086.0,0.02]
[1738654091645,0.151382,99087.0,99086.0,0.02]
[1738654092004,0.15850106,99087.0,99086.0,0.02]
[1738654093823,0.15850106,99087.0,99086.0,0.021]
[1738654095569,0.00711906,99087.0,99086.0,0.021]
[1738654095814,0.161375,99092.0,99086.0,0.021]
[1738654096056,0.0002245,99093.0,99086.0,0.02]
[1738654096057,0.00711906,99087.0,99086.0,0.02]
[1738654096328,0.01,99089.0,99086.0,0.021]
[1738654096534,0.151382,99087.0,99086.0,0.02]
[1738654096740,0.15850106,99087.0,99086.0,0.02]
[1738654096974,0.15850106,99087.0,99086.0,0.021]
[1738654097214,0.15850106,99087.0,99086.0,0.27376806]
[1738654097215,0.00711906,99087.0,99086.0,0.27376806]
[1738654097451,0.08973488,99093.0,99086.0,0.12338506]
[1738654097708,0.08973488,99093.0,99089.0,0.151378]
[1738654097977,0.08973488,99093.0,99090.0,0.10238506]
[1738654097978,0.00713044,99092.0,99090.0,0.10238506]
[1738654100896,0.00713044,99092.0,99090.0,0.10338506]
[1738654102499,0.151376,99091.0,99090.0,0.001]
[1738654102637,0.151379,99089.0,99086.0,0.02]
[1738654102861,0.151378,99090.0,99086.0,0.02]
[1738654103062,0.00712133,99088.0,99086.0,0.02]
[1738654103257,0.151379,99089.0,99086.0,0.02]
[1738654103523,0.00711906,99087.0,99086.0,0.02]
[1738654103736,0.151379,99089.0,99086.0,0.02]
[1738654103931,0.00711906,99087.0,99086.0,0.02]
[1738654104131,0.151379,99089.0,99086.0,0.021]
[1738654104362,0.00711692,99087.0,99086.0,0.02]
[1738654104567,0.01,99090.0,99086.0,0.02]
[1738654104699,0.00711692,99087.0,99086.0,0.02]
[1738654104906,0.161378,99090.0,99086.0,0.02]
[1738654105097,0.00711692,99087.0,99086.0,0.02]
[1738654105298,0.151379,99089.0,99086.0,0.02]
[1738654105517,0.00711692,99087.0,99086.0,0.02]
[1738654105723,0.151379,99089.0,99086.0,0.021]
[1738654105915,0.00711692,99087.0,99086.0,0.021]
[1738654106116,0.151379,99089.0,99086.0,0.021]
[1738654106755,0.0071192,99088.0,99086.0,0.02]
[1738654106956,0.0071192,99088.0,99086.0,0.021]
[1738654107452,0.0071192,99088.0,99086.0,0.02]
[1738654107685,0.0071192,99088.0,99086.0,0.021]
[1738654108092,0.1584992,99088.0,99086.0,0.021]
[1738654108295,0.227282,99087.0,99086.0,0.021]
[1738654108492,0.151382,99087.0,99086.0,0.021]
[1738654108693,0.15849892,99087.0,99086.0,0.021]
[1738654108841,0.15849892,99087.0,99086.0,0.02]
[1738654109037,0.15849892,99087.0,99086.0,0.021]
[1738654109484,0.15849892,99087.0,99086.0,0.02]
[1738654109662,0.15849892,99087.0,99086.0,0.021]
[1738654112065,0.15849892,99087.0,99086.0,0.02]
[1738654112288,0.15849892,99087.0,99086.0,0.021]
[1738654113046,0.15849892,99087.0,99086.0,0.02]
[1738654113452,0.15849892,99087.0,99086.0,0.021]
[1738654114735,0.00711692,99087.0,99086.0,0.021]
[1738654115069,0.15138,99088.0,99086.0,0.02]
[1738654115278,0.00711692,99087.0,99086.0,0.02]
[1738654115577,0.00711692,99087.0,99086.0,0.021]
[1738654116298,0.00734142,99087.0,99086.0,0.021]
[1738654116523,0.0002245,99087.0,99086.0,0.021]
[1738654116719,0.00734142,99087.0,99086.0,0.021]
[1738654116877,0.0002245,99087.0,99086.0,0.02]
[1738654117089,0.00734142,99087.0,99086.0,0.27376806]
[1738654117287,0.00734142,99087.0,99086.0,0.02]
[1738654117510,0.15872342,99087.0,99086.0,0.02]
[1738654118315,0.15872342,99087.0,99086.0,0.021]
[1738654118733,0.15872342,99087.0,99076.0,0.0281934]
[1738654118734,0.02651892,99087.0,99076.0,0.0281934]
[1738654119131,0.161397,99077.0,99076.0,0.0281934]
[1738654119540,0.16848926,99077.0,99076.0,0.0281934]
[1738654121409,0.16848926,99077.0,99076.0,0.0291934]
[1738654121857,0.16848926,99077.0,99076.0,0.0281934]
[1738654122189,0.16848926,99077.0,99076.0,0.0291934]
[1738654122851,0.17766676,99077.0,99076.0,0.0291934]
[1738654123053,0.26036676,99077.0,99076.0,0.0291934]
[1738654123419,0.26036676,99077.0,99076.0,0.0281934]
[1738654123622,0.46036676,99077.0,99076.0,0.0281934]
[1738654124384,0.47917399,99077.0,99076.0,0.0281934]
[1738654125263,0.48017399,99077.0,99076.0,0.0281934]
[1738654125467,0.74254117,99077.0,99076.0,0.0281934]
[1738654125705,0.79054117,99077.0,99076.0,0.0281934]
[1738654126493,0.4500955,99063.0,99062.0,0.0001068]
[1738654126758,0.87418056,99063.0,99062.0,0.0001068]
[1738654127004,0.88005771,99063.0,99062.0,0.0001068]
[1738654127717,1.08005771,99063.0,99062.0,0.0001068]
[1738654128128,0.1706345,99038.0,99037.0,0.0001068]
[1738654128304,0.2950345,99038.0,99037.0,0.0001068]
[1738654128815,0.30088537,99038.0,99037.0,0.0001068]
[1738654129678,0.50202641,99038.0,99037.0,0.0001068]
[1738654129887,0.52383364,99038.0,99037.0,0.0001068]
[1738654130549,0.86898936,99038.0,99037.0,0.0001068]
[1738654131440,0.87886101,99038.0,99037.0,0.0001068]
[1738654131648,0.87586101,99038.0,99037.0,0.0001068]
[1738654131891,0.78309035,99038.0,99037.0,0.0001068]
[1738654132091,0.78809035,99038.0,99037.0,0.0001068]
[1738654132291,0.78709035,99038.0,99037.0,0.0001068]
[1738654132591,0.78909035,99038.0,99037.0,0.0001068]
[1738654132824,0.89158507,99038.0,99037.0,8e-07]
[1738654133014,1.21328507,99038.0,99037.0,8e-07]
[1738654133264,1.24628507,99038.0,99037.0,8e-07]
[1738654133454,1.14163035,99038.0,99037.0,8e-07]
[1738654133638,2.64163035,99038.0,99037.0,8e-07]
[1738654133982,2.65163035,99038.0,99037.0,8e-07]
[1738654134187,2.64663035,99038.0,99037.0,8e-07]
[1738654134728,2.64579035,99038.0,99037.0,8e-07]
[1738654134924,2.75612507,99038.0,99037.0,8e-07]
[1738654135130,2.76512507,99038.0,99037.0,8e-07]
[1738654135314,2.77512507,99038.0,99037.0,8e-07]
[1738654135501,2.76612507,99038.0,99037.0,8e-07]
[1738654135700,2.75828507,99038.0,99037.0,8e-07]
[1738654135906,2.77512507,99038.0,99037.0,8e-07]
[1738654136531,2.79492609,99038.0,99037.0,8e-07]
[1738654136726,2.78708609,99038.0,99037.0,8e-07]
[1738654136958,2.79492609,99038.0,99037.0,8e-07]
[1738654137174,1.28708609,99038.0,99037.0,8e-07]
[1738654137379,1.29492609,99038.0,99037.0,8e-07]
[1738654137725,1.24728507,99038.0,99037.0,8e-07]
[1738654137928,1.13963035,99038.0,99037.0,8e-07]
[1738654138561,1.12963035,99038.0,99037.0,8e-07]
[1738654139425,0.84739035,99038.0,99037.0,8e-07]
[1738654139630,0.74500529,99038.0,99037.0,8e-07]
[1738654139784,0.54500529,99038.0,99037.0,8e-07]
[1738654139967,0.52619806,99038.0,99037.0,8e-07]
[1738654140171,0.18681327,99038.0,99037.0,8e-07]
[1738654140370,0.18763577,99038.0,99037.0,8e-07]
[1738654140608,0.19681327,99038.0,99037.0,8e-07]
[1738654140772,0.16881327,99038.0,99037.0,8e-07]
[1738654140998,0.17881327,99038.0,99037.0,8e-07]
[1738654141173,0.18781327,99038.0,99037.0,8e-07]
[1738654141378,0.19281327,99038.0,99037.0,8e-07]
[1738654141805,0.41726696,99038.0,99037.0,8e-07]
[1738654142007,0.44491249,99038.0,99037.0,8e-07]
[1738654142212,0.57226696,99038.0,99037.0,8e-07]
[1738654142611,2.07226696,99038.0,99037.0,8e-07]
[1738654142810,2.32191249,99038.0,99037.0,8e-07]
[1738654143028,2.29026696,99038.0,99037.0,8e-07]
[1738654143759,2.30886964,99038.0,99037.0,8e-07]
[1738654144320,2.31786964,99038.0,99037.0,8e-07]
[1738654144880,2.31386964,99038.0,99037.0,8e-07]
[1738654145085,2.31386964,99038.0,99005.0,0.0151182]
[1738654145086,0.3206825,99006.0,99005.0,0.0151182]
[1738654145758,0.32863004,99006.0,99005.0,0.0151182]
[1738654146003,0.6310151,99006.0,99005.0,0.0151182]
[1738654146412,0.63115606,99006.0,99005.0,0.0151182]
[1738654146741,0.43115606,99006.0,99005.0,0.0151182]
[1738654147497,0.43715606,99006.0,99005.0,0.0151182]
[1738654148302,0.43915606,99006.0,99005.0,0.0151182]
[1738654149126,0.44902773,99006.0,99005.0,0.0151182]
[1738654150748,0.54664267,99006.0,99005.0,0.0151182]
[1738654151709,0.34664267,99006.0,99005.0,0.0151182]
[1738654151923,0.44902773,99006.0,99005.0,0.0151182]
[1738654152405,0.45686773,99006.0,99005.0,0.0151182]
[1738654152782,2.15686773,99006.0,99005.0,0.0152251]
[1738654153424,2.20526575,99006.0,99005.0,0.0152251]
[1738654154766,2.30776047,99006.0,99005.0,0.0152251]
[1738654155737,2.38856047,99006.0,99005.0,0.0152251]
[1738654155932,2.71026047,99006.0,99005.0,0.0152251]
[1738654156731,0.151513,99001.0,98994.0,0.009486]
[1738654156949,0.25389806,99001.0,98994.0,0.009486]
[1738654157165,0.27099327,99001.0,98994.0,0.009486]
[1738654157367,1.78099327,99001.0,98994.0,0.009486]
[1738654157574,0.28099327,99001.0,98994.0,0.009486]
[1738654158161,0.30460789,99001.0,98994.0,0.009486]
[1738654158769,0.50460789,99001.0,98994.0,0.009486]
[1738654158968,0.50060789,99001.0,98994.0,0.009486]
[1738654159380,0.49960789,99001.0,98994.0,0.009486]
[1738654159943,0.40410261,99001.0,98994.0,0.009486]
[1738654160143,0.30160789,99001.0,98994.0,0.009486]
[1738654160348,0.30860789,99001.0,98994.0,0.009486]
[1738654160969,0.30860789,99001.0,99000.0,0.98526019]
[1738654161171,0.20622283,99001.0,99000.0,0.98526019]
[1738654162076,0.23615208,99001.0,99000.0,0.98526019]
[1738654163225,0.20622283,99001.0,99000.0,0.98526019]
[1738654165819,0.23616148,99001.0,99000.0,0.98526019]
[1738654166438,0.23616148,99001.0,99000.0,0.98536709]
[1738654167838,0.22616148,99001.0,99000.0,0.98536709]
[1738654168049,0.23616148,99001.0,99000.0,0.98536709]
[1738654169257,1.73616148,99001.0,99000.0,0.98536709]
[1738654169859,0.22616148,99001.0,99000.0,0.98536709]
[1738654170326,0.23616148,99001.0,99000.0,0.98536709]
[1738654170498,0.22616148,99001.0,99000.0,0.98536709]
[1738654170881,0.06547098,99001.0,99000.0,0.98536709]
[1738654171359,0.06547098,99001.0,99000.0,1.06866709]
[1738654171664,0.03553233,99001.0,99000.0,1.06866709]
[1738654171998,0.18504533,99001.0,99000.0,1.06866709]
[1738654172615,0.20422283,99001.0,99000.0,0.98536709]
[1738654173535,0.19722283,99001.0,99000.0,0.98536709]
[1738654173746,0.19822283,99001.0,99000.0,0.98536709]
[1738654173950,0.19722283,99001.0,99000.0,0.98536709]
[1738654174365,0.18104533,99001.0,99000.0,0.98536709]
[1738654174772,0.18204533,99001.0,99000.0,0.98536709]
[1738654174974,0.02753233,99001.0,99000.0,0.98536709]
[1738654175179,0.17112762,99001.0,99000.0,0.98536709]
[1738654175561,0.02752285,99001.0,99000.0,1.08775215]
[1738654175764,0.01961462,99001.0,99000.0,1.23926715]
[1738654176027,0.001,99001.0,99000.0,1.08775215]
[1738654176235,0.001,99001.0,99000.0,1.36746715]
[1738654176424,0.001,99001.0,99000.0,1.21595215]
[1738654176567,0.001,99001.0,99000.0,1.36746715]
[1738654177193,0.0091775,99004.0,99000.0,1.36746715]
[1738654177405,0.16104896,99006.0,99001.0,0.10238506]
[1738654177608,0.00793146,99003.0,99001.0,0.10238506]
[1738654177812,0.16104896,99006.0,99001.0,0.10238506]
[1738654178065,0.00792842,99002.0,99001.0,0.10238506]
[1738654178618,0.00036546,99006.0,99001.0,0.10238506]
[1738654178931,0.00793754,99005.0,99001.0,0.10238506]
[1738654179327,0.0002245,99002.0,99001.0,0.10238506]
[1738654179748,0.1517365,99002.0,99001.0,0.10338506]
[1738654180020,0.00815443,99002.0,99001.0,0.10338506]
[1738654180257,0.00815443,99002.0,99001.0,0.10238506]
[1738654180439,0.16966643,99002.0,99001.0,0.001]
[1738654180781,0.151513,99001.0,99000.0,0.98536709]
[1738654181208,0.15944221,99001.0,99000.0,0.98536709]
[1738654183240,0.00792921,99001.0,99000.0,0.98636709]
[1738654183773,0.00792921,99001.0,99000.0,0.98536709]
[1738654184194,0.15944221,99001.0,99000.0,0.98536709]
[1738654184756,0.00792921,99001.0,99000.0,0.98536709]
[1738654184958,0.00792921,99001.0,99000.0,0.98628787]
[1738654185632,0.15944221,99001.0,99000.0,0.98628787]
[1738654185842,0.00792921,99001.0,99000.0,0.98628787]
[1738654186055,0.15944221,99001.0,99000.0,0.98628787]
[1738654186289,0.00792921,99001.0,99000.0,0.98628787]
[1738654186908,0.0002245,99002.0,99000.0,0.98628787]
[1738654187105,0.00792775,99001.0,99000.0,0.98628787]
[1738654187518,0.0002245,99002.0,99000.0,0.98628787]
[1738654187725,0.00792775,99001.0,99000.0,0.98628787]
[1738654189839,0.0002245,99002.0,99000.0,0.98628787]
[1738654190239,0.00792775,99001.0,99000.0,0.98628787]
[1738654190446,0.0002245,99002.0,99001.0,0.151513]
[1738654190574,0.0002245,99002.0,99001.0,0.25389806]
[1738654191515,0.0002245,99002.0,99001.0,0.10238506]
[1738654192288,0.0002245,99002.0,99001.0,0.25389806]
[1738654192689,0.0002245,99002.0,99001.0,0.25489806]
[1738654193157,0.0002245,99002.0,99001.0,0.10338506]
[1738654193379,0.0002245,99002.0,99001.0,0.25489806]
[1738654193548,0.0002245,99002.0,99001.0,0.25389806]
[1738654193802,0.0002245,99002.0,99001.0,0.25489806]
[1738654194018,0.0002245,99002.0,99001.0,0.10338506]
[1738654194333,0.0002245,99002.0,99001.0,0.25389806]
[1738654194491,0.0002245,99002.0,99001.0,0.25489806]
[1738654195337,0.0002245,99002.0,99001.0,0.10338506]
[1738654195719,0.0002245,99002.0,99001.0,0.10238506]
[1738654196125,0.0002245,99002.0,99001.0,0.25489806]
[1738654197492,0.0002245,99002.0,99001.0,0.10338506]
[1738654197721,0.0002245,99002.0,99001.0,0.25489806]
[1738654198164,0.0002245,99002.0,99001.0,0.10338506]
[1738654199595,0.00816151,99002.0,99001.0,0.10338506]
[1738654200235,0.0002245,99002.0,99001.0,0.10338506]
[1738654200464,0.0002245,99002.0,99001.0,0.25624134]
[1738654200693,0.0002245,99002.0,99001.0,0.50989806]
[1738654200927,0.0002245,99002.0,99001.0,0.55649806]
[1738654201647,0.0002245,99002.0,99001.0,0.56652875]
[1738654202145,0.0002245,99002.0,99001.0,0.56552875]
[1738654202640,0.0002245,99002.0,99001.0,0.56652875]
[1738654202894,0.0002245,99002.0,99001.0,0.56552875]
[1738654203133,0.0002245,99002.0,99001.0,0.56652875]
[1738654203623,0.0002245,99002.0,99001.0,0.56552875]
[1738654203866,0.0002245,99002.0,99001.0,0.56652875]
[1738654204132,0.0002245,99002.0,99001.0,0.59528361]
[1738654204628,5e-07,99002.0,99001.0,0.59528361]
[1738654204835,0.08995458,99038.0,99037.0,0.151458]
[1738654205041,0.08995458,99038.0,99037.0,0.33324306]
[1738654205042,0.09009654,99038.0,99037.0,0.33324306]
[1738654205467,0.09009654,99038.0,99037.0,0.35624306]
[1738654205891,0.09009654,99038.0,99037.0,0.10238506]
[1738654206318,0.01,99037.0,99028.0,0.0099395]
[1738654206526,0.00954396,99038.0,99028.0,0.26379556]
[1738654206757,0.00954396,99038.0,99037.0,0.001]
[1738654206975,0.00036646,99038.0,99037.0,0.10338506]
[1738654207181,0.151461,99036.0,99028.0,0.0098244]
[1738654207391,0.01036646,99038.0,99029.0,0.10238506]
[1738654207392,0.151466,99032.0,99029.0,0.10238506]
[1738654207604,0.01,99037.0,99008.0,0.079]
[1738654207780,0.15146,99036.0,99024.0,0.151477]
[1738654208009,0.01,99037.0,99025.0,0.10238506]
[1738654208373,0.01,99037.0,99027.0,0.151473]
[1738654208577,0.151462,99035.0,99028.0,0.10238506]
[1738654209015,0.201948,99035.0,99028.0,0.10238506]
[1738654209400,0.151471,99029.0,99025.0,0.0099839]
[1738654209594,0.01,99034.0,99025.0,0.11236896]
[1738654209996,0.15147,99029.0,99028.0,0.001]
[1738654210471,0.16147,99029.0,99028.0,0.001]
[1738654210699,0.16147,99029.0,99024.0,0.0099231]
[1738654210700,0.1706535,99025.0,99024.0,0.0099231]
[1738654210924,0.1430775,99025.0,99000.0,0.98528787]
[1738654211164,0.151505,99007.0,99001.0,0.10238506]
[1738654211370,0.151499,99010.0,99001.0,0.10238506]
[1738654211606,0.15149,99016.0,99001.0,0.10238506]
[1738654211842,0.0091775,99017.0,99002.0,0.202016]
[1738654212066,0.0091775,99017.0,99001.0,0.10238506]
[1738654212067,0.0091775,99017.0,99003.0,0.25389406]
[1738654212266,0.151492,99015.0,99008.0,0.151502]
[1738654212478,0.15149,99017.0,99010.0,0.151499]
[1738654212705,0.151482,99022.0,99011.0,0.10238506]
[1738654212948,0.01,99023.0,99011.0,0.10238506]
[1738654213172,0.0091775,99017.0,99011.0,0.10238506]
[1738654213399,0.151502,99008.0,99007.0,0.0099149]
[1738654213622,0.01,99012.0,99007.0,0.0099149]
[1738654213623,0.211995,99012.0,99007.0,0.0099149]
[1738654213845,0.201987,99016.0,99008.0,0.10238506]
[1738654214145,0.0091775,99018.0,99011.0,0.001]
[1738654214341,0.21209783,99022.0,99011.0,0.001]
[1738654214342,0.23127533,99022.0,99013.0,0.151494]
[1738654214582,0.151486,99019.0,99013.0,0.151494]
[1738654214846,0.151485,99020.0,99013.0,0.151494]
[1738654215088,0.151485,99020.0,99014.0,0.10238506]
[1738654215312,0.0091775,99022.0,99014.0,0.10238506]
[1738654215538,0.00022428,99024.0,99015.0,0.00134308]
[1738654215795,0.00022428,99024.0,99016.0,0.10238506]
[1738654216234,0.00022428,99024.0,99023.0,0.151479]
[1738654216432,0.00022428,99024.0,99023.0,0.25386406]
[1738654217235,0.00022428,99024.0,99023.0,0.10238506]
[1738654218316,0.151483,99021.0,99020.0,0.02]
[1738654218772,0.17740367,99021.0,99020.0,0.02]
[1738654219704,0.17740367,99021.0,99020.0,0.0202448]
[1738654219944,0.16740367,99021.0,99020.0,0.0212448]
[1738654220183,0.17740367,99021.0,99020.0,0.0212448]
[1738654222359,0.17740367,99021.0,99020.0,0.0012448]
[1738654227348,0.35866077,99021.0,99020.0,0.0012448]
[1738654227761,0.50050367,99021.0,99020.0,0.0012448]
[1738654228415,0.75288873,99021.0,99020.0,8e-07]
[1738654228823,0.75288873,99021.0,99006.0,0.0001068]
[1738654228824,0.151504,99007.0,99006.0,0.0001068]
[1738654229009,0.4038815,99007.0,99006.0,0.0001068]
[1738654229446,0.41055587,99007.0,99006.0,0.0001068]
[1738654229889,0.61055587,99007.0,99006.0,0.0001068]
[1738654230528,0.61155587,99007.0,99006.0,0.0001068]
[1738654230722,0.41155587,99007.0,99006.0,0.0001068]
[1738654232669,0.47811914,99007.0,99006.0,0.0001068]
[1738654232912,0.47811914,99007.0,99006.0,8e-07]
[1738654232913,0.56224093,99007.0,99006.0,8e-07]
[1738654233791,0.56224093,99007.0,99003.0,4.8e-07]
[1738654233792,0.0968775,99004.0,99003.0,4.8e-07]
[1738654233984,0.50857156,99004.0,99003.0,4.8e-07]
[1738654234102,0.51519848,99004.0,99003.0,4.8e-07]
[1738654234507,0.56019848,99004.0,99003.0,4.8e-07]
[1738654234746,2.26019848,99004.0,99003.0,4.8e-07]
[1738654236197,2.26819848,99004.0,99003.0,4.8e-07]
[1738654236603,0.1606905,99001.0,99000.0,0.9840598]
[1738654236802,0.26307556,99001.0,99000.0,0.9840598]
[1738654237013,0.26969336,99001.0,99000.0,0.9840598]
[1738654237168,0.26969336,99001.0,99000.0,0.98233651]
[1738654237587,0.26969336,99001.0,99000.0,0.97637699]
[1738654237811,0.27169336,99001.0,99000.0,0.97637699]
[1738654238250,0.27169336,99001.0,99000.0,0.97440409]
[1738654238432,0.27169336,99001.0,99000.0,0.97144474]
[1738654238635,0.27869336,99001.0,99000.0,0.97144474]
[1738654238835,0.36836779,99001.0,99000.0,0.97144474]
[1738654239740,0.56836779,99001.0,99000.0,0.97144474]
[1738654240098,2.06836779,99001.0,99000.0,0.97144474]
[1738654240760,1.97869336,99001.0,99000.0,0.97144474]
[1738654243154,1.8863083,99001.0,99000.0,0.97144474]
[1738654243374,0.3863083,99001.0,99000.0,0.97144474]
[1738654243775,0.1771308,99001.0,99000.0,0.97144474]
[1738654244019,0.1863083,99001.0,99000.0,0.97144474]
[1738654244533,0.47278808,99001.0,99000.0,0.97144474]
[1738654244816,0.67278808,99001.0,99000.0,0.97144474]
[1738654245024,0.57029336,99001.0,99000.0,0.97144474]
[1738654245851,2.07029336,99001.0,99000.0,0.97144474]
[1738654246264,2.06111586,99001.0,99000.0,0.97144474]
[1738654246501,2.07809336,99001.0,99000.0,0.97144474]
[1738654247217,2.07185888,99001.0,99000.0,0.97144474]
[1738654247448,2.06961489,99001.0,99000.0,0.97144474]
[1738654248086,2.06769095,99001.0,99000.0,0.97144474]
[1738654248303,2.75963567,99001.0,99000.0,0.66236142]
[1738654248525,2.75963567,99001.0,98994.0,0.0193737]
[1738654248526,0.1707275,98977.0,98976.0,0.01051576]
[1738654248769,0.31880304,98977.0,98976.0,0.00024786]
[1738654248939,0.32533744,98977.0,98976.0,0.00024786]
[1738654249142,1.82533744,98977.0,98976.0,0.00024786]
[1738654249345,1.83519797,98977.0,98976.0,0.00024786]
[1738654249543,1.91819797,98977.0,98976.0,0.00024786]
[1738654249744,1.92619797,98977.0,98976.0,0.00024786]
[1738654250321,1.92619797,98977.0,98976.0,8.6e-07]
[1738654250322,2.02858303,98977.0,98976.0,8.6e-07]
[1738654250642,2.27578303,98977.0,98976.0,8.6e-07]
[1738654251367,2.26778303,98977.0,98976.0,8.6e-07]